fUSD/lending_fUSD_20260608
["ID","MTS","AMOUNT","RATE_DAILY","PERIOD"]
[424444337,1780906238000,-150.0,0.00013634,2]
[424444348,1780906238000,-895.89560221,0.00013798,2]
[424444363,1780906238000,-895.89560221,0.00013798,2]
[424444365,1780906238000,-895.89560221,0.00013798,2]
[424444366,1780906238000,-895.89560221,0.00013798,2]
[424444362,1780906238000,-895.89560221,0.00013798,2]
[424444394,1780906238000,-895.89560221,0.00013798,2]
[424444392,1780906238000,-895.89560221,0.00013798,2]
[424444387,1780906238000,-895.89560221,0.00013798,2]
[424444391,1780906238000,-895.89560221,0.00013798,2]
[424444389,1780906238000,-895.89560221,0.00013798,2]
[424444390,1780906238000,-895.89560221,0.00013798,2]
[424444388,1780906238000,-895.89560221,0.00013798,2]
[424444386,1780906238000,-895.89560221,0.00013798,2]
[424444384,1780906238000,-895.89560221,0.00013798,2]
[424444393,1780906238000,-895.89560221,0.00013798,2]
[424444382,1780906238000,-895.89560221,0.00013798,2]
[424444383,1780906238000,-895.89560221,0.00013798,2]
[424444381,1780906238000,-895.89560221,0.00013798,2]
[424444385,1780906238000,-895.89560221,0.00013798,2]
[424444378,1780906238000,-895.89560221,0.00013798,2]
[424444367,1780906238000,-895.89560221,0.00013798,2]
[424444371,1780906238000,-895.89560221,0.00013798,2]
[424444368,1780906238000,-895.89560221,0.00013798,2]
[424444374,1780906238000,-895.89560221,0.00013798,2]
[424444376,1780906238000,-895.89560221,0.00013798,2]
[424444369,1780906238000,-895.89560221,0.00013798,2]
[424444379,1780906238000,-895.89560221,0.00013798,2]
[424444370,1780906238000,-895.89560221,0.00013798,2]
[424444380,1780906238000,-895.89560221,0.00013798,2]
[424444377,1780906238000,-895.89560221,0.00013798,2]
[424444373,1780906238000,-895.89560221,0.00013798,2]
[424444372,1780906238000,-895.89560221,0.00013798,2]
[424444375,1780906238000,-895.89560221,0.00013798,2]
[424444434,1780906239000,-875.41798845,0.00013798,2]
[424444437,1780906239000,-500.0,0.00013798,2]
[424444432,1780906239000,-875.41798845,0.00013798,2]
[424444433,1780906239000,-875.41798845,0.00013798,2]
[424444438,1780906239000,-500.0,0.00013798,2]
[424444421,1780906239000,-875.41798845,0.00013798,2]
[424444440,1780906239000,-500.0,0.00013798,2]
[424444431,1780906239000,-875.41798845,0.00013798,2]
[424444429,1780906239000,-875.41798845,0.00013798,2]
[424444430,1780906239000,-875.41798845,0.00013798,2]
[424444435,1780906239000,-500.0,0.00013798,2]
[424444439,1780906239000,-224.5864019,0.00013798,2]
[424444436,1780906239000,-500.0,0.00013798,2]
[424444448,1780906239000,-351.39242597,0.00013798,2]
[424444443,1780906239000,-500.0,0.00013798,2]
[424444444,1780906239000,-500.0,0.00013798,2]
[424444442,1780906239000,-476.32342177,0.00013798,2]
[424444453,1780906239000,-500.0,0.00013798,2]
[424444449,1780906239000,-875.41798856,0.00013798,2]
[424444445,1780906239000,-550.31882215,0.00013798,2]
[424444447,1780906239000,-500.0,0.00013798,2]
[424444454,1780906239000,-617.22066725,0.00013798,2]
[424444450,1780906239000,-360.82127347,0.00013798,2]
[424444446,1780906239000,-500.0,0.00013798,2]
[424444451,1780906239000,-500.0,0.00013798,2]
[424444452,1780906239000,-441.59776589,0.00013798,2]
[424444422,1780906239000,-875.41798845,0.00013798,2]
[424444441,1780906239000,-500.0,0.00013798,2]
[424444424,1780906239000,-875.41798845,0.00013798,2]
[424444412,1780906239000,-875.41798845,0.00013798,2]
[424444427,1780906239000,-875.41798845,0.00013798,2]
[424444396,1780906239000,-895.89560221,0.00013798,2]
[424444395,1780906239000,-895.89560221,0.00013798,2]
[424444397,1780906239000,-895.89560221,0.00013798,2]
[424444401,1780906239000,-875.41798845,0.00013798,2]
[424444399,1780906239000,-895.89560221,0.00013798,2]
[424444400,1780906239000,-875.41798845,0.00013798,2]
[424444403,1780906239000,-875.41798845,0.00013798,2]
[424444406,1780906239000,-875.41798845,0.00013798,2]
[424444398,1780906239000,-895.89560221,0.00013798,2]
[424444404,1780906239000,-875.41798845,0.00013798,2]
[424444402,1780906239000,-875.41798845,0.00013798,2]
[424444405,1780906239000,-875.41798845,0.00013798,2]
[424444408,1780906239000,-875.41798845,0.00013798,2]
[424444407,1780906239000,-875.41798845,0.00013798,2]
[424444409,1780906239000,-875.41798845,0.00013798,2]
[424444416,1780906239000,-875.41798845,0.00013798,2]
[424444455,1780906239000,-500.0,0.00013798,2]
[424444413,1780906239000,-875.41798845,0.00013798,2]
[424444410,1780906239000,-875.41798845,0.00013798,2]
[424444411,1780906239000,-875.41798845,0.00013798,2]
[424444414,1780906239000,-234.99843405,0.00013798,2]
[424444415,1780906239000,-875.41798845,0.00013798,2]
[424444418,1780906239000,-875.41798845,0.00013798,2]
[424444428,1780906239000,-875.41798845,0.00013798,2]
[424444417,1780906239000,-875.41798845,0.00013798,2]
[424444420,1780906239000,-875.41798845,0.00013798,2]
[424444426,1780906239000,-875.41798845,0.00013798,2]
[424444425,1780906239000,-875.41798845,0.00013798,2]
[424444419,1780906239000,-875.41798845,0.00013798,2]
[424444423,1780906239000,-875.41798845,0.00013798,2]
[424444457,1780906239000,-500.0,0.00013798,2]
[424444459,1780906239000,-422.34892283,0.00013798,2]
[424444463,1780906239000,-166.66,0.00013848,2]
[424444489,1780906239000,-2724.16720171,0.000145,2]
[424444486,1780906239000,-2724.16720171,0.00014367,2]
[424444488,1780906239000,-166.66,0.00014447,2]
[424444495,1780906239000,-255.0,0.00014702,2]
[424444506,1780906239000,-322.47344829,0.00014725,2]
[424444497,1780906239000,-500.0,0.00014725,2]
[424444498,1780906239000,-500.0,0.00014725,2]
[424444496,1780906239000,-500.0,0.00014725,2]
[424444458,1780906239000,-500.0,0.00013798,2]
[424444500,1780906239000,-500.0,0.00014725,2]
[424444499,1780906239000,-500.0,0.00014725,2]
[424444502,1780906239000,-500.0,0.00014725,2]
[424444505,1780906239000,-199.68095837,0.00014725,2]
[424444487,1780906239000,-2600.0,0.000144,5]
[424444501,1780906239000,-500.0,0.00014725,2]
[424444504,1780906239000,-500.0,0.00014725,2]
[424444508,1780906239000,-500.0,0.00014725,2]
[424444509,1780906239000,-500.0,0.00014725,2]
[424444510,1780906239000,-500.0,0.00014725,2]
[424444511,1780906239000,-500.0,0.00014725,2]
[424444517,1780906239000,-600.0,0.000148,5]
[424444512,1780906239000,-500.0,0.00014725,2]
[424444519,1780906239000,-300.0,0.0001484,2]
[424444518,1780906239000,-4195.72,0.00014829,2]
[424444514,1780906239000,-500.0,0.00014725,2]
[424444513,1780906239000,-500.0,0.00014725,2]
[424444515,1780906239000,-397.57156841,0.00014725,2]
[424444516,1780906239000,-2724.16720171,0.00014767,2]
[424444503,1780906239000,-150.0,0.00014725,2]
[424444490,1780906239000,-3300.0,0.000145,5]
[424444507,1780906239000,-500.0,0.00014725,2]
[424444494,1780906239000,-600.0,0.000147,5]
[424444460,1780906239000,-500.0,0.00013798,2]
[424444462,1780906239000,-2724.16720171,0.00013833,2]
[424444456,1780906239000,-500.0,0.00013798,2]
[424444491,1780906239000,-600.0,0.000146,5]
[424444464,1780906239000,-215.86427702,0.0001386,2]
[424444466,1780906239000,-166.66,0.00013998,2]
[424444467,1780906239000,-250.0,0.00014,2]
[424444465,1780906239000,-2724.16720171,0.00013967,2]
[424444469,1780906239000,-2724.16720171,0.000141,2]
[424444479,1780906239000,-2500.0,0.0001436,2]
[424444481,1780906239000,-300.0,0.0001436,2]
[424444468,1780906239000,-309.92,0.0001402,2]
[424444480,1780906239000,-2500.0,0.0001436,2]
[424444472,1780906239000,-1300.0,0.000142,5]
[424444461,1780906239000,-500.0,0.00013798,2]
[424444471,1780906239000,-166.66,0.00014147,2]
[424444470,1780906239000,-600.0,0.000141,5]
[424444493,1780906239000,-1000.0,0.00014673,2]
[424444485,1780906239000,-600.0,0.0001436,2]
[424444484,1780906239000,-250.0,0.0001436,2]
[424444483,1780906239000,-300.0,0.0001436,2]
[424444482,1780906239000,-300.0,0.0001436,2]
[424444492,1780906239000,-2724.16720171,0.00014633,2]
[424444475,1780906239000,-1900.0,0.000143,5]
[424444474,1780906239000,-166.66,0.00014297,2]
[424444478,1780906239000,-2500.0,0.0001436,2]
[424444473,1780906239000,-2724.16720171,0.00014233,2]
[424444477,1780906239000,-2500.0,0.0001436,2]
[424444476,1780906239000,-2500.0,0.0001436,2]
[424444531,1780906240000,-152.05466946,0.00014968,2]
[424444545,1780906240000,-500.0,0.00014999,2]
[424444536,1780906240000,-613.88759714,0.00014999,2]
[424444538,1780906240000,-500.0,0.00014999,2]
[424444537,1780906240000,-166.68986353,0.00014999,2]
[424444541,1780906240000,-500.0,0.00014999,2]
[424444533,1780906240000,-151.0,0.00014997,2]
[424444530,1780906240000,-152.05466946,0.00014968,2]
[424444528,1780906240000,-214.14567846,0.00014968,2]
[424444532,1780906240000,-152.05466946,0.00014968,2]
[424444523,1780906240000,-152.49255,0.0001488,2]
[424444527,1780906240000,-152.49255,0.0001492,2]
[424444526,1780906240000,-2724.16720171,0.000149,2]
[424444525,1780906240000,-600.0,0.000149,5]
[424444522,1780906240000,-585.759,0.0001488,2]
[424444524,1780906240000,-895.0454428,0.000149,2]
[424444521,1780906240000,-200.0,0.0001488,2]
[424444520,1780906240000,-300.0,0.0001484,2]
[424444543,1780906240000,-500.0,0.00014999,2]
[424444529,1780906240000,-181.64888322,0.00014968,2]
[424444534,1780906240000,-178.6273977,0.00014999,2]
[424444554,1780906240000,-3833.0,0.00015,5]
[424444535,1780906240000,-500.0,0.00014999,2]
[424444561,1780906240000,-699.60896803,0.00015,2]
[424444560,1780906240000,-1925.6509472,0.00015,2]
[424444559,1780906240000,-1925.04449865,0.00015,2]
[424444558,1780906240000,-539.294502,0.00015,2]
[424444556,1780906240000,-2000.0,0.00015,2]
[424444552,1780906240000,-671.29049354,0.00014999,2]
[424444553,1780906240000,-4533.0,0.00015,5]
[424444550,1780906240000,-666.0,0.00014999,2]
[424444555,1780906240000,-250.0,0.00015,2]
[424444540,1780906240000,-216.75099889,0.00014999,2]
[424444551,1780906240000,-300.0,0.00014999,2]
[424444544,1780906240000,-500.0,0.00014999,2]
[424444539,1780906240000,-239.16405298,0.00014999,2]
[424444547,1780906240000,-300.0,0.00014999,2]
[424444542,1780906240000,-500.0,0.00014999,2]
[424444549,1780906240000,-300.0,0.00014999,2]
[424444546,1780906240000,-641.79,0.00014999,2]
[424444548,1780906240000,-300.0,0.00014999,2]
[424444557,1780906240000,-4651498.01711099,0.00015,2]
[424444562,1780906240000,-3516.15350592,0.00015,2]
[424444564,1780906241000,-1309.96539186,0.00015,2]
[424444563,1780906241000,-2602.02204305,0.00015,2]
[424444568,1780906243000,-3353.21792276,0.00015,2]
[424444570,1780906246000,-1261.99999,0.00015,2]
[424444670,1780906247000,-252.11827774,0.00015,2]
[424444672,1780906247000,-132811.56360451,0.00015,2]
[424444677,1780906247000,-3917.57304394,0.00015,2]
[424444793,1780906555000,18843.699,0.0003,120]
[424444797,1780906707000,300.0,0.00027397,120]
[424444798,1780906707000,300.0,0.00028767,120]
[424444799,1780906707000,300.0,0.00030137,120]
[424444803,1780906884000,150.0,0.00030137,120]
[424444808,1780906990000,258.0,0.00030136,120]
[424444812,1780907249000,557.46,0.00030137,120]
[424444828,1780907401000,-403.89328256,0.00012955,2]
[424444880,1780907432000,-500.0,0.00013798,2]
[424444879,1780907432000,-500.0,0.00013798,2]
[424444881,1780907432000,-166.66,0.0001388,2]
[424444883,1780907432000,-2500.0,0.00013932,2]
[424444882,1780907432000,-150.0,0.0001393,2]
[424444884,1780907432000,-2500.0,0.00013932,2]
[424444888,1780907432000,-166.66,0.00014062,2]
[424444887,1780907432000,-2500.0,0.00013932,2]
[424444889,1780907432000,-166.66,0.00014244,2]
[424444890,1780907432000,-300.0,0.0001425,2]
[424444891,1780907432000,-300.0,0.0001425,2]
[424444893,1780907432000,-300.0,0.0001425,2]
[424444886,1780907432000,-2500.0,0.00013932,2]
[424444877,1780907432000,-166.66,0.00013699,2]
[424444863,1780907432000,-438.72994607,0.00013,5]
[424444875,1780907432000,-163.62,0.00013613,2]
[424444862,1780907432000,-96.10671744,0.00012955,2]
[424444864,1780907432000,-1175.977762,0.00013289,2]
[424444866,1780907432000,-500.0,0.00013356,2]
[424444867,1780907432000,-4173.45,0.00013382,2]
[424444894,1780907432000,-300.0,0.0001425,2]
[424444865,1780907432000,-200.0,0.0001335,2]
[424444876,1780907432000,-500.18866847,0.0001363,2]
[424444868,1780907432000,-181.99,0.00013407,2]
[424444870,1780907432000,-176.91222489,0.00013488,2]
[424444872,1780907432000,-215.86427702,0.00013574,2]
[424444873,1780907432000,-751.15,0.00013608,2]
[424444871,1780907432000,-204.90053781,0.00013488,2]
[424444874,1780907432000,-258.26,0.00013613,2]
[424444878,1780907432000,-200.0,0.00013699,2]
[424444869,1780907432000,-256.38109004,0.00013488,2]
[424444899,1780907432000,-166.53,0.000145,2]
[424444885,1780907432000,-2500.0,0.00013932,2]
[424444895,1780907432000,-193.56075391,0.0001425,2]
[424444921,1780907432000,-500.0,0.00014899,2]
[424444925,1780907432000,-401.79921151,0.00014899,2]
[424444924,1780907432000,-500.0,0.00014899,2]
[424444923,1780907432000,-500.0,0.00014899,2]
[424444927,1780907432000,-500.0,0.00014899,2]
[424444928,1780907432000,-500.0,0.00014899,2]
[424444920,1780907432000,-500.0,0.00014899,2]
[424444929,1780907432000,-500.0,0.00014899,2]
[424444930,1780907432000,-500.0,0.00014899,2]
[424444932,1780907432000,-500.0,0.00014899,2]
[424444931,1780907432000,-500.0,0.00014899,2]
[424444933,1780907432000,-4764.8527,0.000149,2]
[424444934,1780907432000,-45349.96489561,0.000149,2]
[424444896,1780907432000,-250.0,0.0001425,2]
[424444926,1780907432000,-500.0,0.00014899,2]
[424444922,1780907432000,-500.0,0.00014899,2]
[424444892,1780907432000,-300.0,0.0001425,2]
[424444919,1780907432000,-500.0,0.00014899,2]
[424444901,1780907432000,-166.66,0.00014608,2]
[424444918,1780907432000,-500.0,0.00014899,2]
[424444902,1780907432000,-350.0,0.00014641,2]
[424444904,1780907432000,-152.49255,0.0001485,2]
[424444905,1780907432000,-152.49255,0.0001485,2]
[424444903,1780907432000,-5388.26430891,0.000147,2]
[424444898,1780907432000,-166.66,0.00014426,2]
[424444911,1780907432000,-549.54166988,0.00014899,2]
[424444907,1780907432000,-200.0,0.0001488,2]
[424444909,1780907432000,-533.6,0.00014898,2]
[424444913,1780907432000,-500.0,0.00014899,2]
[424444914,1780907432000,-500.0,0.00014899,2]
[424444916,1780907432000,-500.0,0.00014899,2]
[424444917,1780907432000,-500.0,0.00014899,2]
[424444912,1780907432000,-527.31447559,0.00014899,2]
[424444935,1780907433000,-10325.11803028,0.000149,2]
[424444937,1780907433000,-1437.25959781,0.000149,2]
[424444936,1780907433000,-5187.36226846,0.000149,2]
[424444943,1780907437000,-4205.71500095,0.000149,2]
[424444944,1780907437000,-405636.81660689,0.000149,2]
[424444946,1780907437000,-171.35,0.00014985,2]
[424444948,1780907437000,-500.0,0.00014998,2]
[424444949,1780907437000,-500.0,0.00014999,2]
[424444947,1780907437000,-151.0,0.00014997,2]
[424444945,1780907437000,-10000.0,0.00014944,2]
[424444950,1780907437000,-238.00578641,0.00014999,2]
[424444952,1780907437000,-500.0,0.00014999,2]
[424444942,1780907437000,-500.0,0.00014899,2]
[424444953,1780907437000,-500.0,0.00014999,2]
[424444951,1780907437000,-500.0,0.00014999,2]
[424444955,1780907437000,-500.0,0.00014999,2]
[424444960,1780907437000,-500.0,0.00014999,2]
[424444959,1780907437000,-500.0,0.00014999,2]
[424444963,1780907437000,-500.0,0.00014999,2]
[424444956,1780907437000,-500.0,0.00014999,2]
[424444970,1780907437000,-300.0,0.00014999,2]
[424444972,1780907437000,-300.0,0.00014999,2]
[424444957,1780907437000,-228.97,0.00014999,2]
[424444971,1780907437000,-666.0,0.00014999,2]
[424444968,1780907437000,-166.68986353,0.00014999,2]
[424444966,1780907437000,-500.0,0.00014999,2]
[424444973,1780907437000,-4738.0,0.00015,5]
[424444965,1780907437000,-500.0,0.00014999,2]
[424444964,1780907437000,-500.0,0.00014999,2]
[424444962,1780907437000,-500.0,0.00014999,2]
[424444961,1780907437000,-500.0,0.00014999,2]
[424444958,1780907437000,-500.0,0.00014999,2]
[424444954,1780907437000,-500.0,0.00014999,2]
[424444967,1780907437000,-613.88759714,0.00014999,2]
[424444969,1780907437000,-500.0,0.00014999,2]
[424444978,1780907438000,-1211.96949075,0.00015,2]
[424444979,1780907438000,-2349.45264352,0.00015,2]
[424444977,1780907438000,-4278834.0424275,0.00015,2]
[424444975,1780907438000,-250.0,0.00015,2]
[424444974,1780907438000,-3795.0,0.00015,5]
[424444976,1780907438000,-2000.0,0.00015,2]
[424445269,1780907440000,-409.09999998,0.00015,2]
[424445297,1780907442000,-601.55201314,0.00015,2]
[424445303,1780907443000,-22.63498669,0.00015,2]
[424445432,1780907445000,-428.39,0.00015,2]
[424445433,1780907446000,-921.76508325,0.00015,2]
[424445917,1780907499000,27295.34134555,0.00030137,120]
[424445943,1780907700000,151.0,0.00030136,120]
[424445945,1780907772000,22.63294552,0.0001,2]
[424445946,1780907772000,182.35011887,0.0001,2]
[424445983,1780907965000,300.0,0.00029863,120]
[424445984,1780907999000,1000.0,0.0003,120]
[424445986,1780908035000,488.92,0.00029452,120]
[424446006,1780908301000,646.3,0.0003013,120]
[424446034,1780908526000,970.0,0.0003013,120]
[424446036,1780908615000,300.0,0.00029863,120]
[424446052,1780908631000,-300.0,0.00013719,2]
[424446051,1780908631000,-166.66,0.00013699,2]
[424446053,1780908631000,-306.4919251,0.0001374,2]
[424446054,1780908631000,-2193.5080749,0.0001374,2]
[424446055,1780908631000,-300.0,0.00013781,2]
[424446058,1780908631000,-2500.0,0.00013819,2]
[424446059,1780908631000,-2140.32628312,0.00013819,2]
[424446057,1780908631000,-150.0,0.00013782,2]
[424446056,1780908631000,-300.0,0.00013781,2]
[424446062,1780908632000,-166.66,0.00013878,2]
[424446061,1780908632000,-181.99,0.00013865,2]
[424446060,1780908632000,-359.67371688,0.00013819,2]
[424446063,1780908632000,-215.86427702,0.00013886,2]
[424446067,1780908632000,-161.69210798,0.00014057,2]
[424446064,1780908632000,-200.0,0.00013901,2]
[424446066,1780908632000,-4.96789202,0.00014057,2]
[424446065,1780908632000,-250.0,0.00014,2]
[424446068,1780908632000,-460.55160841,0.00014063,2]
[424446098,1780908638000,-500.0,0.00014799,2]
[424446101,1780908638000,-500.0,0.00014799,2]
[424446104,1780908638000,-200.0,0.0001488,2]
[424446102,1780908638000,-500.0,0.00014799,2]
[424446108,1780908638000,-500.0,0.00014899,2]
[424446109,1780908638000,-500.0,0.00014899,2]
[424446111,1780908638000,-500.0,0.00014899,2]
[424446113,1780908638000,-500.0,0.00014899,2]
[424446112,1780908638000,-500.0,0.00014899,2]
[424446119,1780908638000,-35583.1186444,0.00014989,2]
[424446117,1780908638000,-169.3063898,0.00014989,2]
[424446103,1780908638000,-10000.0,0.00014876,2]
[424446118,1780908638000,-5542.5187801,0.00014989,2]
[424446099,1780908638000,-500.0,0.00014799,2]
[424446089,1780908638000,-150.0,0.00014579,2]
[424446097,1780908638000,-500.0,0.00014799,2]
[424446086,1780908638000,-140.36839159,0.00014063,2]
[424446114,1780908638000,-500.0,0.00014899,2]
[424446088,1780908638000,-166.66,0.00014416,2]
[424446095,1780908638000,-500.0,0.00014799,2]
[424446087,1780908638000,-166.66,0.00014237,2]
[424446090,1780908638000,-14500.27,0.0001458,2]
[424446100,1780908638000,-500.0,0.00014799,2]
[424446092,1780908638000,-297.89,0.0001458,2]
[424446093,1780908638000,-166.66,0.00014596,2]
[424446091,1780908638000,-12940.2,0.0001458,2]
[424446105,1780908638000,-500.0,0.00014899,2]
[424446106,1780908638000,-500.0,0.00014899,2]
[424446107,1780908638000,-500.0,0.00014899,2]
[424446096,1780908638000,-238.00578641,0.00014799,2]
[424446094,1780908638000,-500.0,0.00014799,2]
[424446116,1780908638000,-8640.4787079,0.00014989,2]
[424446110,1780908638000,-500.0,0.00014899,2]
[424446121,1780908638000,-6295.4138393,0.00014989,2]
[424446181,1780908638000,-4168549.48712182,0.00015,2]
[424446179,1780908638000,-2000.0,0.00015,2]
[424446175,1780908638000,-3790.0,0.00015,5]
[424446177,1780908638000,-250.0,0.00015,2]
[424446173,1780908638000,-4741.0,0.00015,5]
[424446167,1780908638000,-300.0,0.00014999,2]
[424446171,1780908638000,-666.0,0.00014999,2]
[424446169,1780908638000,-300.0,0.00014999,2]
[424446159,1780908638000,-247.17626688,0.00014999,2]
[424446161,1780908638000,-160.17752954,0.00014999,2]
[424446157,1780908638000,-377.97769017,0.00014999,2]
[424446165,1780908638000,-671.29049354,0.00014999,2]
[424446153,1780908638000,-228.97,0.00014999,2]
[424446155,1780908638000,-164.03593575,0.00014999,2]
[424446151,1780908638000,-500.0,0.00014999,2]
[424446163,1780908638000,-227.81320246,0.00014999,2]
[424446137,1780908638000,-216.75099889,0.00014999,2]
[424446120,1780908638000,-3328.7815646,0.00014989,2]
[424446122,1780908638000,-13575.3398549,0.00014989,2]
[424446123,1780908638000,-151.0,0.00014997,2]
[424446149,1780908638000,-500.0,0.00014999,2]
[424446139,1780908638000,-178.6273977,0.00014999,2]
[424446141,1780908638000,-500.0,0.00014999,2]
[424446143,1780908638000,-500.0,0.00014999,2]
[424446124,1780908638000,-500.0,0.00014999,2]
[424446133,1780908638000,-613.88759714,0.00014999,2]
[424446147,1780908638000,-500.0,0.00014999,2]
[424446135,1780908638000,-166.68986353,0.00014999,2]
[424446129,1780908638000,-239.16405298,0.00014999,2]
[424446131,1780908638000,-500.0,0.00014999,2]
[424446145,1780908638000,-500.0,0.00014999,2]
[424446115,1780908638000,-426.88,0.000149,2]
[424446205,1780908641000,-5860.17057274,0.00015,2]
[424446218,1780908643000,-825.42970719,0.00015,2]
[424446217,1780908643000,-1125.0,0.00015,2]
[424446242,1780908645000,-251.92332478,0.00015,2]
[424446243,1780908646000,-762.0,0.00015,2]
[424446253,1780908682000,182.07,0.0003,120]
[424446254,1780908742000,215.21,0.00027451,120]
[424446255,1780908765000,1000.0,0.00029452,120]
[424446269,1780908957000,1531.2,0.0003013,120]
[424446270,1780909005000,1120.1302,0.0003013,120]
[424446277,1780909111000,1000.0,0.00030137,120]
[424446283,1780909228000,300.0,0.00029863,120]
[424446422,1780909833000,-188.03185133,0.00014612,2]
[424446412,1780909833000,-188.03185133,0.00014439,2]
[424446417,1780909833000,-500.0,0.00014479,2]
[424446416,1780909833000,-500.0,0.00014479,2]
[424446414,1780909833000,-502.49134264,0.00014479,2]
[424446415,1780909833000,-558.28164668,0.00014479,2]
[424446420,1780909833000,-700.0,0.00014497,2]
[424446419,1780909833000,-188.03185133,0.00014496,2]
[424446426,1780909833000,-188.03185133,0.00014727,2]
[424446425,1780909833000,-500.0,0.00014726,2]
[424446424,1780909833000,-166.66,0.00014677,2]
[424446423,1780909833000,-188.03185133,0.00014669,2]
[424446432,1780909833000,-2804.5155306,0.00014883,2]
[424446429,1780909833000,-500.0,0.00014799,2]
[424446418,1780909833000,-166.66,0.00014481,2]
[424446421,1780909833000,-188.03185133,0.00014554,2]
[424446408,1780909833000,-215.21,0.00014136,2]
[424446411,1780909833000,-188.03185133,0.00014381,2]
[424446430,1780909833000,-188.03185133,0.00014842,2]
[424446399,1780909833000,-500.0,0.00013599,2]
[424446400,1780909833000,-480.73,0.00013639,2]
[424446396,1780909833000,-500.0,0.00013356,2]
[424446397,1780909833000,-500.0,0.00013356,2]
[424446398,1780909833000,-219.60558838,0.00013593,2]
[424446413,1780909833000,-184.0,0.00014478,2]
[424446401,1780909833000,-215.86427702,0.0001366,2]
[424446403,1780909833000,-200.0,0.00013699,2]
[424446405,1780909833000,-250.0,0.00014,2]
[424446404,1780909833000,-166.66,0.00013894,2]
[424446407,1780909833000,-150.0,0.00014117,2]
[424446409,1780909833000,-166.66,0.00014285,2]
[424446410,1780909833000,-454.0,0.00014317,2]
[424446402,1780909833000,-166.66,0.00013699,2]
[424446431,1780909833000,-200.0,0.0001488,2]
[424446406,1780909833000,-166.66,0.0001409,2]
[424446428,1780909833000,-500.0,0.00014799,2]
[424446449,1780909833000,-500.0,0.00014999,2]
[424446452,1780909833000,-500.0,0.00014999,2]
[424446450,1780909833000,-500.0,0.00014999,2]
[424446453,1780909833000,-228.97,0.00014999,2]
[424446457,1780909833000,-500.0,0.00014999,2]
[424446464,1780909833000,-546.67207477,0.00014999,2]
[424446451,1780909833000,-500.0,0.00014999,2]
[424446465,1780909833000,-300.0,0.00014999,2]
[424446459,1780909833000,-216.75099889,0.00014999,2]
[424446461,1780909833000,-227.81320246,0.00014999,2]
[424446460,1780909833000,-458.55035766,0.00014999,2]
[424446462,1780909833000,-160.17752954,0.00014999,2]
[424446463,1780909833000,-247.17626688,0.00014999,2]
[424446427,1780909833000,-188.03185133,0.00014785,2]
[424446458,1780909833000,-239.16405298,0.00014999,2]
[424446455,1780909833000,-500.0,0.00014999,2]
[424446456,1780909833000,-166.68986353,0.00014999,2]
[424446446,1780909833000,-151.0,0.00014997,2]
[424446454,1780909833000,-613.88759714,0.00014999,2]
[424446443,1780909833000,-2500.0,0.00014952,2]
[424446433,1780909833000,-2358.135502,0.00014883,2]
[424446440,1780909833000,-300.0,0.00014946,2]
[424446438,1780909833000,-300.0,0.00014946,2]
[424446437,1780909833000,-300.0,0.00014946,2]
[424446436,1780909833000,-2500.0,0.00014946,2]
[424446435,1780909833000,-188.03185133,0.000149,2]
[424446439,1780909833000,-300.0,0.00014946,2]
[424446442,1780909833000,-2500.0,0.00014952,2]